fUST/lending_fUST_20240624
["ID","MTS","AMOUNT","RATE_DAILY","PERIOD"]
[330253569,1719210654398,-500.0,0.00018356,2]
[330253571,1719210654408,-500.0,0.00018356,2]
[330253573,1719210654418,-1573.12,0.00018356,2]
[330253575,1719210654427,-500.0,0.00018356,2]
[330253577,1719210654437,-500.0,0.00018356,2]
[330253579,1719210654447,-2115.26284951,0.00018357,2]
[330253582,1719210654458,-154.77557542,0.00018529,2]
[330253584,1719210654468,-1393.16,0.00018629,2]
[330253586,1719210654477,-500.0,0.00018629,2]
[330253588,1719210654487,-987.56,0.00018629,2]
[330253590,1719210654496,-500.0,0.00018629,2]
[330253592,1719210654506,-500.0,0.0001863,2]
[330253594,1719210654515,-500.0,0.0001863,2]
[330253596,1719210654525,-779.35,0.0001863,2]
[330253598,1719210654534,-500.0,0.0001863,2]
[330253600,1719210654543,-500.0,0.0001863,2]
[330253602,1719210654553,-500.0,0.0001863,2]
[330253604,1719210654562,-500.0,0.0001863,2]
[330253606,1719210654571,-606.23208407,0.0001863,2]
[330253608,1719210654582,-500.0,0.0001863,2]
[330253610,1719210654592,-500.0,0.0001863,2]
[330253612,1719210654602,-1011.51760012,0.0001863,2]
[330253864,1719210806785,3000.0,0.000225,30]
[330253904,1719211308557,1045.96,0.00014,2]
[330253906,1719211407755,3000.0,0.000225,30]
[330253914,1719211629197,-504.152246,0.0001539,2]
[330253915,1719211629219,-300.0,0.00015476,2]
[330253916,1719211629251,-300.0,0.00015476,2]
[330253917,1719211629279,-24900.0,0.00015477,2]
[330253918,1719211629302,-739.026639,0.00016259,2]
[330253919,1719211629324,-871.645979,0.00016259,2]
[330253920,1719211629349,-752.0691821,0.00016338,2]
[330253921,1719211629376,-1455.4020495,0.00016338,2]
[330253922,1719211629398,-4731.71054985,0.00016435,2]
[330253923,1719211629420,-500.0,0.00016438,2]
[330253924,1719211629443,-500.0,0.00016438,2]
[330253925,1719211629466,-500.0,0.00016438,2]
[330253926,1719211629489,-500.0,0.00016438,2]
[330253927,1719211629512,-500.0,0.00016438,2]
[330253928,1719211629536,-154.72864892,0.00016438,2]
[330253929,1719211629558,-500.0,0.00016438,2]
[330253930,1719211629580,-500.0,0.00016438,2]
[330253931,1719211629603,-500.0,0.00016438,2]
[330253932,1719211629628,-500.0,0.00016438,2]
[330253933,1719211629652,-500.0,0.00016438,2]
[330253934,1719211629679,-500.00953168,0.00016438,2]
[330253935,1719211629706,-500.0,0.00016438,2]
[330253936,1719211629729,-699.52,0.00016438,2]
[330253937,1719211629753,-500.0,0.00016438,2]
[330253938,1719211629775,-523.37854237,0.00016438,2]
[330253939,1719211629798,-5297.67,0.00016438,2]
[330253940,1719211629820,-598.05,0.00016438,2]
[330253941,1719211629842,-739.026639,0.00016462,2]
[330253942,1719211629867,-871.645979,0.00016462,2]
[330253943,1719211631211,-739.026639,0.00016665,2]
[330253944,1719211631241,-871.645979,0.00016665,2]
[330253945,1719211631267,-500.0,0.00016711,2]
[330253946,1719211631291,-500.0,0.00016711,2]
[330253947,1719211631316,-520.16849074,0.00016711,2]
[330253948,1719211631338,-265.14772273,0.00016711,2]
[330253949,1719211631363,-598.15,0.00016711,2]
[330253950,1719211631395,-500.0,0.00016711,2]
[330253951,1719211631418,-500.0,0.00016711,2]
[330253952,1719211631441,-500.0,0.00016711,2]
[330253953,1719211631464,-896.29,0.00016711,2]
[330253954,1719211631486,-500.0,0.00016711,2]
[330253955,1719211631508,-500.0,0.00016711,2]
[330253956,1719211631530,-500.0,0.00016711,2]
[330253957,1719211631556,-500.0,0.00016711,2]
[330253958,1719211631579,-753.1,0.00016711,2]
[330253959,1719211631602,-2007.25,0.00016711,2]
[330253960,1719211631624,-593.63,0.00016711,2]
[330253961,1719211631646,-500.0,0.00016711,2]
[330253962,1719211631667,-506.42954724,0.00016711,2]
[330253963,1719211631688,-325.29575617,0.00016711,2]
[330253964,1719211631712,-500.0,0.00016711,2]
[330253965,1719211631732,-500.0,0.00016711,2]
[330253966,1719211631755,-500.0,0.00016711,2]
[330253967,1719211631775,-500.0,0.00016711,2]
[330253968,1719211631803,-486.80664094,0.00016711,2]
[330253969,1719211631824,-517.76026908,0.00016711,2]
[330253970,1719211631846,-500.0,0.00016711,2]
[330253971,1719211631872,-500.0,0.00016711,2]
[330253972,1719211631894,-500.0,0.00016711,2]
[330253973,1719211631915,-500.0,0.00016711,2]
[330253974,1719211631938,-3759.01,0.00016711,2]
[330253975,1719211631959,-500.0,0.00016711,2]
[330253976,1719211631981,-756.86,0.00016711,2]
[330253977,1719211632002,-505.26,0.00016711,2]
[330253978,1719211632024,-500.0,0.00016712,2]
[330253979,1719211632047,-500.0,0.00016712,2]
[330253980,1719211632068,-428.35,0.00016712,2]
[330253981,1719211632089,-500.0,0.00016712,2]
[330253982,1719211632111,-486.82,0.00016712,2]
[330253983,1719211632132,-500.0,0.00016712,2]
[330253984,1719211632154,-699.52,0.00016712,2]
[330253985,1719211632174,-500.0,0.00016712,2]
[330253986,1719211632198,-5297.67,0.00016712,2]
[330253987,1719211632219,-598.05,0.00016712,2]
[330253988,1719211632241,-752.06918209,0.00016728,2]
[330253989,1719211632262,-739.026639,0.00016869,2]
[330253990,1719211632282,-871.645979,0.00016869,2]
[330253991,1719211632304,-313.0,0.00016929,2]
[330253992,1719211632325,-500.0,0.00016984,2]
[330253993,1719211632347,-500.0,0.00016984,2]
[330253994,1719211632371,-500.0,0.00016984,2]
[330253995,1719211632392,-578.25,0.00016984,2]
[330253996,1719211632417,-2893.1,0.00016984,2]
[330253997,1719211632440,-500.0,0.00016985,2]
[330253998,1719211632461,-500.0,0.00016985,2]
[330253999,1719211632482,-500.0,0.00016985,2]
[330254000,1719211632504,-500.0,0.00016985,2]
[330254001,1719211632526,-504.823621,0.00016985,2]
[330254002,1719211632548,-506.63193811,0.00016985,2]
[330254003,1719211632570,-502.99456902,0.00016985,2]
[330254004,1719211632594,-512.94830801,0.00016985,2]
[330254005,1719211632623,-501.74041586,0.00016985,2]
[330254006,1719211632644,-504.30762572,0.00016985,2]
[330254007,1719211632667,-501.8473309,0.00016985,2]
[330254008,1719211632689,-500.0,0.00016985,2]
[330254009,1719211632711,-504.18179672,0.00016985,2]
[330254010,1719211632736,-501.28442853,0.00016985,2]
[330254011,1719211632759,-524.54534281,0.00016985,2]
[330254012,1719211632782,-504.10402697,0.00016985,2]
[330254013,1719211632804,-506.03605693,0.00016985,2]
[330254014,1719211632826,-502.59077471,0.00016985,2]
[330254015,1719211632848,-509.00550511,0.00016985,2]
[330254016,1719211632876,-546.46341874,0.00016985,2]
[330254017,1719211632899,-505.08860987,0.00016985,2]
[330254018,1719211632920,-506.34960376,0.00016985,2]
[330254019,1719211632943,-506.7761798,0.00016985,2]
[330254020,1719211632964,-217.09544898,0.00016985,2]
[330254021,1719211632986,-500.0,0.00016985,2]
[330254022,1719211633006,-459.87365323,0.00016985,2]
[330254023,1719211633027,-461.70713825,0.00016985,2]
[330254024,1719211633047,-500.0,0.00016985,2]
[330254025,1719211633068,-500.0,0.00016985,2]
[330254026,1719211633090,-500.0,0.00016985,2]
[330254027,1719211633115,-896.29,0.00016985,2]
[330254028,1719211633135,-500.0,0.00016985,2]
[330254029,1719211633166,-500.0,0.00016985,2]
[330254030,1719211633189,-500.0,0.00016985,2]
[330254031,1719211633209,-503.49830285,0.00016985,2]
[330254032,1719211633230,-500.0,0.00016985,2]
[330254033,1719211633250,-500.0,0.00016985,2]
[330254034,1719211633270,-504.26160852,0.00016985,2]
[330254035,1719211633289,-500.0,0.00016985,2]
[330254036,1719211633310,-500.0,0.00016985,2]
[330254037,1719211633329,-500.0,0.00016985,2]
[330254038,1719211633350,-500.0,0.00016985,2]
[330254039,1719211633373,-501.83801852,0.00016985,2]
[330254040,1719211633394,-753.1,0.00016985,2]
[330254041,1719211633413,-505.08951291,0.00016985,2]
[330254042,1719211633433,-500.0,0.00016985,2]
[330254043,1719211633454,-500.3026683,0.00016985,2]
[330254044,1719211633475,-500.0,0.00016985,2]
[330254045,1719211633495,-498.99511938,0.00016985,2]
[330254046,1719211633515,-421.57842319,0.00016985,2]
[330254047,1719211633536,-501.8698942,0.00016985,2]
[330254048,1719211633556,-510.01499452,0.00016985,2]
[330254049,1719211633577,-500.0,0.00016985,2]
[330254050,1719211633598,-581.17,0.00016985,2]
[330254051,1719211633622,-2007.25,0.00016985,2]
[330254052,1719211633642,-500.0,0.00016985,2]
[330254053,1719211633662,-500.0,0.00016985,2]
[330254054,1719211633682,-500.0,0.00016985,2]
[330254055,1719211633702,-500.0,0.00016985,2]
[330254056,1719211633728,-431.72835678,0.00016985,2]
[330254057,1719211633749,-500.0,0.00016985,2]
[330254058,1719211633771,-1048.75,0.00016985,2]
[330254059,1719211633794,-531.96524995,0.00016985,2]
[330254060,1719211633814,-500.0,0.00016985,2]
[330254061,1719211633835,-500.0,0.00016985,2]
[330254062,1719211633856,-296.04,0.00016985,2]
[330254063,1719211633880,-500.0,0.00016985,2]
[330254064,1719211633906,-500.23671975,0.00016985,2]
[330254065,1719211634095,-500.0,0.00016985,2]
[330254066,1719211634118,-500.0,0.00016985,2]
[330254067,1719211634141,-498.08475505,0.00016985,2]
[330254068,1719211634162,-509.59069571,0.00016985,2]
[330254069,1719211634183,-516.01327769,0.00016985,2]
[330254070,1719211634203,-187.07,0.00016985,2]
[330254071,1719211634223,-510.2564023,0.00016985,2]
[330254072,1719211634243,-500.0,0.00016985,2]
[330254073,1719211634263,-500.0,0.00016985,2]
[330254074,1719211634284,-3759.01,0.00016985,2]
[330254075,1719211634304,-500.0,0.00016985,2]
[330254076,1719211634325,-756.86,0.00016985,2]
[330254077,1719211634345,-505.26,0.00016985,2]
[330254078,1719211634368,-500.0,0.00016986,2]
[330254079,1719211634388,-500.0,0.00016986,2]
[330254080,1719211634412,-500.0,0.00016986,2]
[330254081,1719211634433,-500.0,0.00016986,2]
[330254082,1719211634454,-699.52,0.00016986,2]
[330254083,1719211634475,-500.0,0.00016986,2]
[330254084,1719211634496,-5297.67,0.00016986,2]
[330254085,1719211634518,-598.05,0.00016986,2]
[330254086,1719211634539,-420.0,0.00017023,2]
[330254087,1719211634560,-739.026639,0.00017072,2]
[330254088,1719211634580,-871.645979,0.00017072,2]
[330254089,1719211634607,-752.06918209,0.00017119,2]
[330254090,1719211634635,-500.0,0.00017258,2]
[330254091,1719211634657,-500.0,0.00017258,2]
[330254092,1719211634677,-500.0,0.00017258,2]
[330254093,1719211634698,-578.25,0.00017258,2]
[330254094,1719211634723,-2893.1,0.00017258,2]
[330254095,1719211634744,-500.0,0.00017259,2]
[330254096,1719211634767,-500.0,0.00017259,2]
[330254097,1719211634788,-500.0,0.00017259,2]
[330254098,1719211634810,-500.0,0.00017259,2]
[330254099,1719211634831,-500.0,0.00017259,2]
[330254100,1719211634852,-896.29,0.00017259,2]
[330254101,1719211634879,-500.0,0.00017259,2]
[330254102,1719211634900,-500.0,0.00017259,2]
[330254103,1719211634919,-500.0,0.00017259,2]
[330254104,1719211634940,-500.0,0.00017259,2]
[330254105,1719211634962,-500.0,0.00017259,2]
[330254106,1719211634982,-753.1,0.00017259,2]
[330254107,1719211635003,-2007.25,0.00017259,2]
[330254108,1719211635029,-1048.75,0.00017259,2]
[330254109,1719211635051,-500.0,0.00017259,2]
[330254110,1719211635073,-500.0,0.00017259,2]
[330254111,1719211635093,-500.0,0.00017259,2]
[330254112,1719211635120,-627.0784224,0.00017259,2]
[330254113,1719211635145,-500.0,0.00017259,2]
[330254114,1719211635167,-3759.01,0.00017259,2]
[330254115,1719211635187,-500.0,0.00017259,2]
[330254116,1719211635209,-756.86,0.00017259,2]
[330254117,1719211635231,-505.26,0.00017259,2]
[330254118,1719211635252,-500.0,0.0001726,2]
[330254119,1719211635274,-500.0,0.0001726,2]
[330254120,1719211635296,-500.0,0.0001726,2]
[330254121,1719211635317,-500.0,0.0001726,2]
[330254122,1719211635338,-699.52,0.0001726,2]
[330254123,1719211635361,-500.0,0.0001726,2]
[330254124,1719211635383,-5297.67,0.0001726,2]
[330254125,1719211635404,-598.05,0.0001726,2]
[330254126,1719211635426,-752.06918209,0.00017509,2]
[330254127,1719211635451,-500.0,0.00017532,2]
[330254128,1719211635473,-492.62397409,0.00017532,2]
[330254129,1719211635493,-500.0,0.00017532,2]
[330254130,1719211635514,-578.25,0.00017532,2]
[330254131,1719211635536,-2893.1,0.00017532,2]
[330254132,1719211635556,-500.0,0.00017533,2]
[330254133,1719211635578,-358.93867232,0.00017533,2]
[330254134,1719211635599,-500.0,0.00017533,2]
[330254135,1719211635621,-500.0,0.00017533,2]
[330254136,1719211635642,-896.29,0.00017533,2]
[330254137,1719211635662,-500.0,0.00017533,2]
[330254138,1719211635683,-500.0,0.00017533,2]
[330254139,1719211635704,-500.0,0.00017533,2]
[330254140,1719211635728,-500.0,0.00017533,2]
[330254141,1719211635750,-500.0,0.00017533,2]
[330254142,1719211635771,-753.1,0.00017533,2]
[330254143,1719211635795,-2007.25,0.00017533,2]
[330254144,1719211635816,-1048.75,0.00017533,2]
[330254145,1719211635837,-500.0,0.00017533,2]
[330254146,1719211635858,-500.0,0.00017533,2]
[330254147,1719211635882,-500.0,0.00017533,2]
[330254148,1719211635904,-500.0,0.00017533,2]
[330254149,1719211635926,-3759.01,0.00017533,2]
[330254150,1719211635947,-500.0,0.00017533,2]
[330254151,1719211635968,-756.86,0.00017533,2]
[330254152,1719211635989,-505.26,0.00017533,2]
[330254153,1719211636010,-500.0,0.00017534,2]
[330254154,1719211636032,-500.0,0.00017534,2]
[330254155,1719211636058,-500.0,0.00017534,2]
[330254156,1719211636078,-500.0,0.00017534,2]
[330254157,1719211636099,-699.52,0.00017534,2]
[330254158,1719211636123,-191.76736193,0.00017534,2]
[330254159,1719211636146,-5297.67,0.00017534,2]
[330254160,1719211636166,-12196.54694775,0.00017805,2]
[330254161,1719211636187,-500.0,0.00017806,2]
[330254162,1719211636208,-500.0,0.00017806,2]
[330254163,1719211636229,-578.25,0.00017806,2]
[330254164,1719211636251,-2893.1,0.00017806,2]
[330254165,1719211636271,-154.77557542,0.00017806,2]
[330254166,1719211636291,-500.0,0.00017807,2]
[330254167,1719211636313,-500.0,0.00017807,2]
[330254168,1719211636335,-500.0,0.00017807,2]
[330254169,1719211636356,-896.29,0.00017807,2]
[330254170,1719211636381,-500.0,0.00017807,2]
[330254171,1719211636402,-500.0,0.00017807,2]
[330254172,1719211636423,-500.0,0.00017807,2]
[330254173,1719211636443,-500.0,0.00017807,2]
[330254174,1719211636463,-617.05987317,0.00017807,2]
[330254175,1719211636484,-500.0,0.00017807,2]
[330254176,1719211636505,-753.1,0.00017807,2]
[330254177,1719211636527,-2007.25,0.00017807,2]
[330254178,1719211636548,-1048.75,0.00017807,2]
[330254179,1719211636567,-500.0,0.00017807,2]
[330254180,1719211636588,-500.0,0.00017807,2]
[330254181,1719211636610,-500.0,0.00017807,2]
[330254182,1719211636632,-500.0,0.00017807,2]
[330254183,1719211636654,-3759.01,0.00017807,2]
[330254184,1719211636675,-500.0,0.00017807,2]
[330254185,1719211636696,-6972.7816651,0.00017807,2]
[330254186,1719211636721,-756.86,0.00017807,2]
[330254187,1719211636742,-505.26,0.00017807,2]
[330254188,1719211636765,-500.0,0.00017808,2]
[330254189,1719211636786,-500.0,0.00017808,2]
[330254190,1719211636810,-464.09826088,0.00017808,2]
[330254191,1719211636830,-500.0,0.00017808,2]
[330254192,1719211636851,-699.52,0.00017808,2]
[330254193,1719211636874,-5297.67,0.00017808,2]
[330254194,1719211636895,-157.894736,0.00017808,2]
[330254195,1719211636915,-9601.79213166,0.0001787,2]
[330254196,1719211636935,-752.06918209,0.00017899,2]
[330254197,1719211636954,-2647.51345546,0.00017975,2]
[330254198,1719211636973,-990.65106447,0.00017978,2]
[330254199,1719211636993,-193.26898841,0.00017978,2]
[330254200,1719211637014,-3121.90445973,0.00018,7]
[330254201,1719211637035,-5926.19523831,0.00018,2]
[330254202,1719211637054,-286.39912426,0.00018079,2]
[330254203,1719211637074,-431.47739711,0.00018079,2]
[330254204,1719211637094,-500.0,0.0001808,2]
[330254205,1719211637115,-500.0,0.0001808,2]
[330254206,1719211637135,-578.25,0.0001808,2]
[330254207,1719211637154,-2893.1,0.0001808,2]
[330254208,1719211637174,-532.16234726,0.00018081,2]
[330254209,1719211637193,-20000.0,0.00018081,2]
[330254210,1719211637213,-500.0,0.00018081,2]
[330254211,1719211637233,-500.0,0.00018081,2]
[330254212,1719211637253,-896.29,0.00018081,2]
[330254213,1719211637274,-500.0,0.00018081,2]
[330254214,1719211637294,-500.0,0.00018081,2]
[330254215,1719211637315,-500.0,0.00018081,2]
[330254216,1719211637335,-500.0,0.00018081,2]
[330254217,1719211637355,-753.1,0.00018081,2]
[330254218,1719211637378,-2007.25,0.00018081,2]
[330254219,1719211637401,-1048.75,0.00018081,2]
[330254220,1719211637424,-500.0,0.00018081,2]
[330254221,1719211637445,-500.0,0.00018081,2]
[330254222,1719211637466,-500.0,0.00018081,2]
[330254223,1719211637486,-516.79936011,0.00018081,2]
[330254224,1719211637507,-159.35965211,0.00018081,2]
[330254225,1719211637528,-500.0,0.00018081,2]
[330254226,1719211637549,-3759.01,0.00018081,2]
[330254227,1719211637570,-500.0,0.00018081,2]
[330254228,1719211637593,-756.86,0.00018081,2]
[330254229,1719211637624,-154.77557542,0.00018081,2]
[330254230,1719211637645,-505.26,0.00018081,2]
[330254231,1719211637800,-500.0,0.00018082,2]
[330254232,1719211637826,-500.0,0.00018082,2]
[330254233,1719211637848,-500.0,0.00018082,2]
[330254234,1719211637879,-699.52,0.00018082,2]
[330254235,1719211637903,-5297.67,0.00018082,2]
[330254236,1719211637925,-3923.79380918,0.00018088,2]
[330254237,1719211637945,-3923.79380918,0.00018088,2]
[330254238,1719211637965,-757.78264509,0.00018088,2]
[330254239,1719211637985,-627.00263973,0.00018088,2]
[330254240,1719211638009,-825.92070736,0.00018187,2]
[330254241,1719211638030,-745.25402318,0.0001819,2]
[330254242,1719211638050,-597.70730701,0.0001819,2]
[330254243,1719211638070,-565.7746747,0.00018192,2]
[330254244,1719211638089,-401.65252924,0.00018192,2]
[330254245,1719211638110,-531.11088939,0.00018192,2]
[330254246,1719211638133,-154.77557542,0.00018192,2]
[330254247,1719211638154,-154.77557542,0.00018192,2]
[330254248,1719211638174,-157.19006853,0.00018192,2]
[330254249,1719211638194,-723.78639686,0.00018192,2]
[330254250,1719211638215,-811.14465118,0.00018219,2]
[330254251,1719211638235,-190.21057725,0.00018219,2]
[330254252,1719211638256,-179.54081427,0.00018239,2]
[330254253,1719211638276,-1102.94117698,0.00018239,2]
[330254254,1719211638297,-500.0,0.00018354,2]
[330254255,1719211638317,-500.0,0.00018354,2]
[330254256,1719211638337,-2893.1,0.00018354,2]
[330254257,1719211638357,-500.0,0.00018355,2]
[330254258,1719211638385,-500.0,0.00018355,2]
[330254259,1719211638406,-896.29,0.00018355,2]
[330254260,1719211638429,-490.91043507,0.00018355,2]
[330254261,1719211638450,-500.0,0.00018355,2]
[330254262,1719211638471,-500.0,0.00018355,2]
[330254263,1719211638492,-500.0,0.00018355,2]
[330254264,1719211638515,-753.1,0.00018355,2]
[330254265,1719211638537,-2007.25,0.00018355,2]
[330254266,1719211638559,-1048.75,0.00018355,2]
[330254267,1719211638581,-500.0,0.00018355,2]
[330254268,1719211638603,-500.0,0.00018355,2]
[330254269,1719211638626,-500.0,0.00018355,2]
[330254270,1719211638647,-500.0,0.00018355,2]
[330254271,1719211638670,-3759.01,0.00018355,2]
[330254272,1719211638691,-163.78909791,0.00018355,2]
[330254273,1719211638716,-756.86,0.00018355,2]
[330254274,1719211638743,-505.26,0.00018355,2]
[330254275,1719211638768,-500.0,0.00018356,2]
[330254276,1719211638791,-500.0,0.00018356,2]
[330254277,1719211638813,-500.0,0.00018356,2]
[330254278,1719211638835,-699.52,0.00018356,2]
[330254279,1719211638856,-5297.67,0.00018356,2]
[330254280,1719211638880,-282.43951893,0.00018357,2]
[330254281,1719211638902,-151.0,0.0001838,2]
[330254282,1719211638923,-151.0,0.0001838,2]
[330254283,1719211638944,-153.0,0.00018466,2]
[330254284,1719211638964,-6046.20423796,0.00018499,2]
[330254285,1719211638983,-1357.49851464,0.00018499,2]
[330254286,1719211639003,-457.45943987,0.00018529,2]
[330254287,1719211639025,-292.92115938,0.00018529,2]
[330254288,1719211639046,-151.0,0.00018587,2]
[330254289,1719211639066,-151.0,0.00018587,2]
[330254290,1719211639092,-500.0,0.00018628,2]
[330254291,1719211639115,-500.0,0.00018628,2]
[330254292,1719211639136,-2893.1,0.00018628,2]
[330254293,1719211639157,-500.0,0.00018629,2]
[330254294,1719211639179,-500.0,0.00018629,2]
[330254295,1719211639200,-896.29,0.00018629,2]
[330254296,1719211639221,-500.0,0.00018629,2]
[330254297,1719211639241,-500.0,0.00018629,2]
[330254298,1719211639263,-500.0,0.00018629,2]
[330254299,1719211639283,-753.1,0.00018629,2]
[330254300,1719211639305,-2007.25,0.00018629,2]
[330254301,1719211639326,-1048.75,0.00018629,2]
[330254302,1719211639346,-500.0,0.00018629,2]
[330254303,1719211639368,-500.0,0.00018629,2]
[330254304,1719211639388,-500.0,0.00018629,2]
[330254305,1719211639409,-209.12519749,0.00018629,2]
[330254306,1719211639429,-155.67922253,0.00018629,2]
[330254307,1719211639449,-500.0,0.00018629,2]
[330254308,1719211639470,-3759.01,0.00018629,2]
[330254309,1719211639491,-756.86,0.00018629,2]
[330254310,1719211639512,-505.26,0.00018629,2]
[330254311,1719211639532,-500.0,0.0001863,2]
[330254312,1719211639553,-500.0,0.0001863,2]
[330254313,1719211639574,-295.91839515,0.0001863,2]
[330254314,1719211639596,-699.52,0.0001863,2]
[330254315,1719211639620,-5297.67,0.0001863,2]
[330254316,1719211639640,-151.0,0.00018793,2]
[330254317,1719211639662,-151.0,0.00018793,2]
[330254318,1719211639683,-524.41677193,0.00018799,2]
[330254319,1719211639703,-154.82195475,0.00018799,2]
[330254320,1719211639726,-160.0,0.00018888,2]
[330254321,1719211639746,-230185.03280613,0.000189,2]
[330254322,1719211642110,-598.05,0.00017534,2]
[330254323,1719211642134,-9601.79213166,0.00017805,2]
[330254324,1719211642285,-598.05,0.00017808,2]
[330254325,1719211642306,-286.39912426,0.00017999,2]
[330254326,1719211642326,-3923.79380918,0.00018081,2]
[330254327,1719211642347,-598.05,0.00018082,2]
[330254328,1719211642369,-154.77557542,0.00018088,2]
[330254329,1719211642389,-1487.2316115,0.0001819,2]
[330254330,1719211642409,-565.7746747,0.0001819,2]
[330254331,1719211642428,-574.38492394,0.00018192,2]
[330254332,1719211642448,-598.05,0.00018356,2]
[330254333,1719211642467,-598.05,0.0001863,2]
[330254334,1719211642487,-524.41677193,0.00018707,2]
[330254335,1719211642507,-18570.08294515,0.000189,2]
[330254371,1719211833054,-597.52,0.00016438,2]
[330254373,1719211833063,-500.0,0.00016438,2]
[330254375,1719211833073,-500.0,0.00016438,2]
[330254377,1719211833081,-945.71,0.00016438,2]
[330254380,1719211833090,-502.06,0.00016438,2]
[330254383,1719211833100,-884.10279019,0.00016438,2]
[330254386,1719211833111,-454.06720981,0.00016438,2]
[330254389,1719211833121,-500.0,0.00016438,2]
[330254391,1719211833130,-500.0,0.00016438,2]
[330254394,1719211833139,-500.0,0.00016438,2]
[330254397,1719211833148,-74.83231784,0.00016438,2]
[330254400,1719211833159,-425.16768216,0.00016438,2]
[330254403,1719211833169,-504.58,0.00016438,2]
[330254406,1719211833178,-202.71851101,0.00016711,2]
[330254409,1719211833187,-98.2732163,0.00016711,2]
[330254413,1719211833199,-310.0,0.00016711,2]
[330254415,1719211833210,-91.7267837,0.00016711,2]
[330254417,1719211833219,-500.0,0.00016711,2]
[330254418,1719211833229,-1457.08615399,0.00016711,2]
[330254419,1719211833240,-510.15026831,0.00016711,2]
[330254420,1719211833252,-82.0435777,0.00016711,2]
[330254421,1719211833265,-434.16409864,0.00016711,2]
[330254434,1719211840123,-308.69590136,0.00016711,2]
[330254436,1719211840133,-597.52,0.00016712,2]
[330254437,1719211840143,-500.0,0.00016712,2]
[330254439,1719211840153,-500.0,0.00016712,2]
[330254440,1719211840162,-214.13605239,0.00016712,2]
[330254468,1719211843668,-731.57394761,0.00016712,2]
[330254469,1719211843678,-502.06,0.00016712,2]
[330254470,1719211843688,-1338.17,0.00016712,2]
[330254471,1719211843698,-500.0,0.00016712,2]
[330254472,1719211843708,-500.0,0.00016712,2]
[330254473,1719211843718,-211.75926868,0.00016712,2]
[330254474,1719211843728,-500.0,0.00016712,2]
[330254475,1719211843737,-504.58,0.00016712,2]
[330254476,1719211843747,-500.0,0.00016985,2]
[330254477,1719211843756,-500.0,0.00016985,2]
[330254478,1719211843766,-2049.28,0.00016985,2]
[330254479,1719211843777,-742.86,0.00016985,2]
[330254480,1719211843789,-597.52,0.00016986,2]
[330254481,1719211843801,-500.0,0.00016986,2]
[330254483,1719211843811,-500.0,0.00016986,2]
[330254484,1719211843820,-945.71,0.00016986,2]
[330254486,1719211843830,-502.06,0.00016986,2]
[330254488,1719211843841,-1338.17,0.00016986,2]
[330254490,1719211843851,-500.0,0.00016986,2]
[330254493,1719211843860,-500.0,0.00016986,2]
[330254496,1719211843870,-500.0,0.00016986,2]
[330254499,1719211843879,-504.58,0.00016986,2]
[330254500,1719211843890,-500.0,0.00017259,2]
[330254503,1719211843899,-500.0,0.00017259,2]
[330254505,1719211843909,-2049.28,0.00017259,2]
[330254508,1719211843919,-742.86,0.00017259,2]